bitfinex/quotes_ETHUSD_20240817
["timestamp","ask_amount","ask_price","bid_price","bid_amount"]
[1723856684017,0.12689969,2605.4,2605.2,3.0]
[1723856684218,0.12689969,2605.4,2605.1,2.2509]
[1723856684219,1.662,2605.5,2605.1,2.2509]
[1723856684418,0.12690435,2605.4,2605.1,2.2509]
[1723856684595,0.12690845,2605.3,2605.1,2.2509]
[1723856684796,1.662,2605.5,2605.1,2.2509]
[1723856685001,0.12690688,2605.4,2605.1,2.2509]
[1723856685338,1.662,2605.5,2605.1,2.2509]
[1723856685502,0.12690386,2605.4,2605.1,2.2509]
[1723856685698,11.429,2605.7,2605.1,2.2509]
[1723856685902,0.12690501,2605.6,2605.1,3.543756]
[1723856686120,0.12690501,2605.5,2605.2,3.0]
[1723856686321,11.429,2605.7,2605.2,3.71791131]
[1723856686499,0.1268979,2605.6,2605.2,3.0]
[1723856686699,0.1268979,2605.6,2605.1,5.2509]
[1723856687238,7.46,2606.0,2605.5,6.08891]
[1723856687447,0.12687985,2605.9,2605.6,3.0]
[1723856687743,4.669,2606.1,2605.7,3.83774]
[1723856687744,2.362,2606.1,2605.7,3.83774]
[1723856687902,0.12687714,2606.0,2605.8,3.0]
[1723856688101,2.362,2606.1,2605.7,3.0]
[1723856688102,0.12687714,2605.9,2605.7,3.0]
[1723856688300,0.7,2606.1,2605.7,7.93210731]
[1723856688704,0.12686723,2606.0,2605.8,2.2509]
[1723856688907,0.7,2606.1,2605.8,2.2509]
[1723856689132,9.122,2606.3,2605.8,2.94219]
[1723856689351,0.12686327,2606.2,2605.9,3.0]
[1723856689556,7.46,2606.3,2605.9,3.0]
[1723856689847,0.12686038,2606.2,2605.9,3.0]
[1723856690030,7.46,2606.3,2605.9,3.0]
[1723856690350,0.12686064,2606.2,2605.9,3.0]
[1723856690533,0.12686064,2606.1,2605.9,3.0]
[1723856690741,7.46,2606.3,2605.9,3.0]
[1723856691112,3.0,2620.2,2605.9,3.0]
[1723856691113,4.39068308,2606.8,2606.1,3.83715]
[1723856691269,7.46,2606.9,2606.2,4.7387306]
[1723856691270,0.12683662,2606.7,2606.2,4.7387306]
[1723856691418,7.46,2606.9,2606.4,5.49863]
[1723856691620,7.46,2606.9,2606.6,3.83629]
[1723856691844,0.7,2607.2,2606.9,3.83587]
[1723856692034,0.7,2607.2,2607.0,3.0]
[1723856692233,7.46,2607.5,2607.0,6.83581]
[1723856692475,7.46,2607.5,2607.2,3.83549]
[1723856692476,0.746,2607.5,2607.2,3.83549]
[1723856692648,1.0,2607.8,2607.2,3.83544]
[1723856692834,1.0,2607.8,2607.0,7.0528]
[1723856692835,0.12679614,2607.7,2607.3,6.83536]
[1723856693065,0.33991961,2607.7,2607.3,3.83536]
[1723856694234,2.70191961,2607.7,2607.0,5.3908]
[1723856694467,2.70191961,2607.7,2607.0,3.0]
[1723856694468,0.37019196,2607.6,2607.0,3.0]
[1723856694669,0.37019196,2607.6,2606.7,11.7252]
[1723856694670,0.37019196,2607.6,2606.8,3.0]
[1723856694876,0.7,2607.4,2606.8,3.0]
[1723856695541,2.03219196,2607.6,2607.0,3.83573]
[1723856695758,2.03219196,2607.6,2607.1,3.0]
[1723856696078,1.03991961,2607.7,2607.1,3.0]
[1723856696232,1.0,2607.8,2607.3,3.83529]
[1723856696943,1.0,2607.8,2607.7,7.66958]
[1723856697277,1.0,2607.8,2607.7,13.06038]
[1723856697500,1.0,2607.8,2607.7,10.88759]
[1723856697982,1.0,2607.8,2607.7,9.22559]
[1723856698698,1.0,2607.8,2607.7,13.06038]
[1723856698833,1.0,2607.8,2607.7,14.22123231]
[1723856699028,1.0,2607.8,2607.7,10.38644231]
[1723856699448,1.0,2607.8,2607.7,3.0]
[1723856699648,1.0,2607.8,2607.6,3.83494]
[1723856699930,1.0,2607.8,2607.7,6.83479]
[1723856701373,1.0,2607.8,2607.7,3.0]
[1723856701609,1.0,2607.8,2607.7,3.683494]
[1723856701815,1.0,2607.8,2607.7,7.518284]
[1723856703256,0.7,2609.6,2608.7,3.8332]
[1723856703368,0.7,2609.6,2607.7,6.074294]
[1723856703369,2.2724,2609.5,2608.8,0.38332]
[1723856703571,2.2724,2609.5,2608.6,2.3908]
[1723856703572,2.2724,2609.5,2608.7,6.8332]
[1723856703781,2.2724,2609.5,2608.7,3.8332]
[1723856704021,0.7,2609.3,2608.8,3.0]
[1723856704319,0.7,2609.3,2608.6,3.0]
[1723856704472,0.05648448,2609.2,2608.7,3.83322]
[1723856704662,0.05648448,2609.2,2608.8,3.0]
[1723856704867,0.05648448,2609.2,2608.6,6.83337]
[1723856705119,0.05648448,2609.2,2608.7,3.8333]
[1723856705265,0.05648448,2609.2,2608.6,3.64388931]
[1723856705266,0.05648448,2609.2,2608.8,3.0]
[1723856705462,0.05648448,2609.2,2608.6,3.64388931]
[1723856705669,0.05648448,2609.2,2608.6,3.0]
[1723856706020,0.05648448,2609.2,2608.7,3.83323]
[1723856706202,0.05648448,2609.2,2608.9,3.83302]
[1723856706373,0.05648448,2609.2,2608.7,3.83321]
[1723856706574,0.05648448,2609.2,2608.8,3.0]
[1723856706878,0.05648448,2609.2,2608.9,3.0]
[1723856707096,0.05648448,2609.2,2608.8,3.0]
[1723856707704,0.05648448,2609.2,2608.9,3.0]
[1723856708684,0.05648448,2609.2,2608.9,6.833]
[1723856708911,0.05648448,2609.2,2608.9,3.0]
[1723856709222,0.05648448,2609.2,2608.7,7.66656]
[1723856709223,0.05648448,2609.2,2608.8,3.0]
[1723856709431,0.05648448,2609.2,2608.8,6.83308]
[1723856709725,0.05648448,2609.2,2608.9,3.833]
[1723856709909,0.55,2609.1,2609.0,9.19348]
[1723856710250,0.05648448,2609.2,2609.1,7.66546]
[1723856710455,0.05648448,2609.2,2609.1,6.83273]
[1723856711354,0.00648448,2609.2,2609.1,6.83273]
[1723856712720,0.00648448,2609.2,2609.1,3.0]
[1723856712920,0.00648448,2609.2,2608.8,3.8331]
[1723856712921,0.00648448,2609.2,2609.0,6.83287]
[1723856713246,0.00648448,2609.2,2609.0,3.0]
[1723856713909,0.00648448,2609.2,2608.9,3.0]
[1723856714106,0.00648448,2609.2,2608.9,6.83303]
[1723856714364,0.00648448,2609.2,2608.6,3.83337]
[1723856714365,3.97748448,2609.2,2608.6,3.83337]
[1723856714526,3.97748448,2609.2,2608.4,6.19429]
[1723856714527,3.971,2608.9,2608.2,3.83395]
[1723856714857,3.971,2608.9,2608.3,3.83383]
[1723856715446,3.971,2608.9,2608.0,6.19487]
[1723856715737,3.971,2608.6,2608.0,3.83426]
[1723856715944,3.971,2608.6,2607.8,3.83458]
[1723856715945,3.971,2608.3,2607.8,3.83458]
[1723856716250,3.971,2608.3,2607.6,3.83483]
[1723856716607,3.971,2608.0,2607.4,7.67028]
[1723856716810,3.971,2608.0,2607.6,3.83483]
[1723856717067,3.971,2608.0,2607.6,7.66969]
[1723856717349,3.971,2608.0,2607.6,3.83483]
[1723856717569,3.971,2608.0,2607.3,2.87468383]
[1723856717570,3.971,2608.0,2607.3,2.3606]
[1723856717709,3.971,2608.0,2606.4,7.32]
[1723856717710,3.971,2607.4,2606.9,2.3606]
[1723856717902,3.971,2607.4,2607.0,3.83571]
[1723856718106,0.55,2607.3,2607.2,3.83553]
[1723856718330,3.971,2607.7,2607.3,3.83534]
[1723856718545,3.971,2607.7,2607.2,0.76712]
[1723856718546,0.55,2607.6,2607.2,0.76712]
[1723856718752,0.55,2607.6,2607.2,3.83548]
[1723856719355,0.55,2607.6,2607.3,3.0]
[1723856720136,0.55,2607.6,2607.2,3.0]
[1723856720522,0.55,2607.6,2607.2,6.83551]
[1723856720708,0.55,2607.6,2607.2,8.286175]
[1723856722104,0.55,2607.6,2607.2,6.83551]
[1723856722720,0.55,2607.6,2607.2,3.0]
[1723856723014,3.971,2607.4,2607.2,3.0]
[1723856723227,0.55,2607.3,2606.9,3.0]
[1723856723618,0.55,2607.3,2606.3,3.83685]
[1723856723619,3.971,2607.1,2606.5,3.83653]
[1723856723819,0.55,2607.3,2606.5,3.83653]
[1723856723820,3.971,2606.8,2606.5,1.115685]
[1723856724064,3.971,2606.8,2606.1,11.1571]
[1723856724232,3.971,2606.8,2606.0,6.19782]
[1723856724234,0.55,2606.7,2606.0,6.19782]
[1723856724433,3.971,2606.5,2606.0,2.3606]
[1723856724646,3.971,2606.5,2605.9,3.83741]
[1723856724977,3.971,2606.2,2605.7,3.83764]
[1723856725119,3.971,2606.2,2605.7,7.67527]
[1723856725468,0.55,2606.1,2605.8,1.015047]
[1723856725622,0.55,2606.1,2605.5,7.67588]
[1723856725816,0.55,2606.1,2605.5,3.83794]
[1723856726174,0.55,2606.1,2605.7,3.83771]
[1723856726516,0.55,2606.1,2605.5,7.67585]
[1723856726772,3.971,2605.9,2605.3,3.83824]
[1723856726930,3.971,2605.9,2605.4,3.83815]
[1723856727138,3.971,2605.9,2605.4,0.767639]
[1723856727139,0.55,2605.8,2605.4,0.767639]
[1723856727316,0.55,2605.8,2605.5,3.83789]
[1723856727676,0.55,2605.8,2605.4,0.767639]
[1723856728240,0.55,2605.8,2605.4,4.605719]
[1723856729064,0.55,2605.8,2605.5,3.0]
[1723856729279,0.55,2605.8,2605.5,6.83798]
[1723856729459,0.55,2605.8,2605.7,3.83774]
[1723856729666,3.83634,2606.7,2606.1,3.83704]
[1723856729667,3.971,2606.5,2606.1,3.83704]
[1723856729839,3.971,2606.5,2606.1,4.604472]
[1723856730185,3.971,2606.5,2606.0,7.67448]
[1723856730385,3.971,2606.5,2606.1,3.0]
[1723856731269,3.971,2606.5,2606.1,6.83714]
[1723856731270,0.55,2606.4,2606.1,6.83714]
[1723856731772,0.55,2606.4,2606.2,3.83699]
[1723856731988,0.55,2606.4,2606.3,3.0]
[1723856732976,0.55,2606.6,2606.3,3.0]
[1723856733145,3.181,2606.7,2606.3,6.83684]
[1723856733684,3.181,2606.7,2606.4,3.83667]
[1723856733847,0.08560814,2606.6,2606.5,3.0]
[1723856734438,0.63560814,2606.6,2606.5,3.0]
[1723856734835,0.63560814,2606.6,2606.5,2.45]
[1723856735158,0.63560814,2606.6,2606.1,1.067434]
[1723856735159,1.01726895,2606.6,2606.1,3.83714]
[1723856735354,0.63560814,2606.6,2606.1,3.83714]
[1723856735581,0.63560814,2606.6,2606.0,3.83721]
[1723856735786,0.63560814,2606.6,2606.0,3.83719]
[1723856735998,0.63560814,2606.6,2606.1,3.83714]
[1723856737065,0.63560814,2606.6,2606.2,3.383714]
[1723856737066,0.55,2606.5,2606.2,3.383714]
[1723856737261,0.55,2606.5,2605.5,13.52287]
[1723856737262,0.55,2606.5,2606.4,3.8367]
[1723856737490,0.55,2606.5,2606.4,6.8367]
[1723856737702,0.55,2606.6,2606.5,3.83656]
[1723856738009,0.55,2606.6,2606.4,3.0]
[1723856739412,0.55,2606.6,2606.4,6.83662]
[1723856739565,0.55,2606.6,2606.4,6.83666]
[1723856740937,0.55,2606.6,2606.4,3.0]
[1723856741062,0.08527265,2606.5,2606.3,3.0]
[1723856741264,0.55,2606.4,2606.3,11.357301]
[1723856741460,0.08527265,2606.5,2606.4,11.5101]
[1723856741715,3.181,2607.5,2606.4,3.0]
[1723856741866,0.08079238,2607.4,2607.3,3.83538]
[1723856742069,3.181,2607.8,2607.3,3.83538]
[1723856742496,0.08059283,2607.7,2607.4,3.83512]
[1723856742816,3.72987,2607.8,2607.4,3.83512]
[1723856742972,0.08052166,2607.6,2607.4,3.83512]
[1723856743305,0.0804425,2607.5,2607.4,3.83512]
[1723856743467,3.181,2607.8,2607.3,7.67065]
[1723856743661,3.181,2607.8,2607.3,3.83527]
[1723856743662,0.08153885,2607.7,2607.3,3.83527]
[1723856744008,3.181,2607.8,2607.1,3.0]
[1723856744227,3.881,2608.1,2607.7,3.83479]
[1723856744592,0.08177617,2608.0,2607.7,3.83479]
[1723856745407,0.55,2607.9,2607.7,3.83479]
[1723856745565,0.55,2607.9,2607.5,6.835]
[1723856745762,0.08161796,2607.8,2607.6,3.0]
[1723856745998,0.55,2607.7,2607.6,3.0]
[1723856746394,0.63063884,2607.7,2607.6,3.0]
[1723856747020,0.63063884,2607.7,2607.4,3.0]
[1723856747383,3.181,2607.5,2607.4,3.0]
[1723856747585,3.181,2607.5,2607.2,3.83552]
[1723856747586,3.731,2607.5,2607.3,3.0]
[1723856747793,3.26241445,2607.5,2607.3,3.0]
[1723856748102,0.55,2607.4,2607.2,3.0]
[1723856748307,0.08128122,2607.3,2607.2,3.0]
[1723856748517,0.63128122,2607.3,2607.0,3.83582]
[1723856748734,0.08128122,2607.3,2607.1,3.83559]
[1723856748934,0.55,2607.2,2607.1,3.83559]
[1723856749349,0.55,2607.4,2607.1,3.83559]
[1723856749721,0.08143907,2607.3,2607.2,3.0]
[1723856749930,0.55,2607.3,2607.2,3.0]
[1723856750257,0.55,2607.3,2607.2,6.83553]
[1723856750459,3.181,2607.5,2607.3,3.83528]
[1723856750460,0.55,2607.4,2607.3,3.83528]
[1723856750826,0.63152237,2607.4,2607.3,3.83528]
[1723856751644,0.63152237,2607.4,2607.3,6.83528]
[1723856751847,0.63152237,2607.4,2607.3,12.037741]
[1723856752157,0.63152237,2607.4,2607.3,10.67066]
[1723856752456,0.08152237,2607.4,2607.3,10.67066]
[1723856752849,3.181,2607.8,2607.3,6.83528]
[1723856753053,3.181,2607.8,2607.5,3.83507]
[1723856753555,3.181,2607.8,2607.4,3.0]
[1723856753765,1.11755,2607.7,2607.4,3.0]
[1723856754119,1.11755,2607.7,2607.3,3.0]
[1723856754442,3.181,2607.5,2607.3,3.0]
[1723856754654,0.55,2607.4,2607.2,3.0]
[1723856754851,0.55,2607.4,2607.3,3.83538]
[1723856755024,0.55,2607.4,2607.3,6.83538]
[1723856755655,0.63149118,2607.4,2607.3,6.83538]
[1723856755962,0.63149118,2607.4,2607.3,3.0]
[1723856757962,0.63149118,2607.4,2607.3,6.83538]
[1723856758170,0.63149118,2607.4,2607.3,3.0]
[1723856758637,0.08149118,2607.4,2607.3,11.354303]
[1723856758839,0.08149118,2607.4,2607.3,6.83538]
[1723856759052,5.6755,2607.9,2607.3,6.83538]
[1723856759260,5.6755,2607.9,2607.4,6.83515]
[1723856759760,5.6755,2607.9,2607.5,3.83497]
[1723856760072,0.55,2607.8,2607.5,3.83497]
[1723856760526,0.55,2607.8,2607.5,7.66998]
[1723856760727,0.55,2607.8,2607.5,3.83497]
[1723856761767,3.181,2607.6,2607.4,3.0]
[1723856762225,0.55,2607.5,2607.4,3.0]
[1723856762826,0.55,2607.5,2606.9,3.83589]
[1723856762827,0.6312726,2607.5,2607.2,3.0]
[1723856763130,1.2538226,2607.5,2607.1,3.0]
[1723856763455,1.2538226,2607.5,2607.1,3.83566]
[1723856763639,1.2538226,2607.5,2607.2,3.0]
[1723856763640,0.6312726,2607.5,2607.2,3.0]
[1723856764527,0.6312726,2607.5,2607.1,3.0]
[1723856764997,0.7,2607.2,2606.2,2.398]
[1723856765286,0.7,2607.2,2606.3,3.83676]
[1723856765287,3.181,2606.7,2606.3,3.83676]
[1723856765497,3.181,2606.7,2606.1,3.83708]
[1723856765697,3.181,2606.4,2605.9,3.83736]
[1723856765903,3.181,2606.4,2605.7,3.83761]
[1723856766099,0.55,2606.3,2606.0,3.83717]
[1723856766265,0.62967118,2606.3,2606.0,3.83717]
[1723856766969,0.62967118,2606.3,2606.1,3.0]
[1723856767461,0.62967118,2606.3,2606.0,6.8372]
[1723856767951,0.62967118,2606.3,2606.1,3.83706]
[1723856768152,0.62967118,2606.3,2606.2,6.837]
[1723856768382,0.07967118,2606.3,2606.2,10.674]
[1723856768791,3.181,2606.7,2606.3,3.83683]
[1723856769848,0.55,2606.6,2606.3,3.83683]
[1723856770049,0.62980777,2606.6,2606.3,3.83683]
[1723856770250,0.55,2606.6,2606.2,6.837]
[1723856770449,0.9231,2606.6,2606.2,3.0]
[1723856770688,0.07972856,2606.5,2606.1,3.0]
[1723856770897,0.55,2606.4,2606.1,3.0]
[1723856771103,0.55,2606.4,2606.1,6.83714]
[1723856771247,0.07957012,2606.3,2606.1,6.83714]
[1723856771448,0.55,2606.2,2606.1,6.83714]
[1723856771755,0.55,2606.2,2606.1,3.0]
[1723856772093,0.55,2606.2,2606.1,6.83715]
[1723856772268,0.55,2606.3,2606.1,6.83715]
[1723856773088,0.55,2606.3,2606.1,3.0]
[1723856773296,0.07976968,2606.2,2606.1,3.0]
[1723856773455,0.62976968,2606.2,2606.1,3.0]
[1723856773657,0.55,2606.2,2606.1,3.0]
[1723856773950,0.55,2606.3,2606.1,3.0]
[1723856774155,0.07976968,2606.2,2606.1,3.0]
[1723856774355,0.55,2606.2,2606.1,3.0]
[1723856774680,1.25191968,2606.2,2605.9,3.0]
[1723856774856,0.07976968,2606.2,2606.1,7.6743]
[1723856775059,0.62976968,2606.2,2606.1,10.6743]
[1723856775286,0.55,2606.2,2606.1,11.98655]
[1723856775593,0.55,2606.2,2606.1,6.83715]
[1723856776686,0.55,2606.2,2606.1,3.0]
[1723856776887,0.55,2606.2,2606.0,6.83727]
[1723856777228,0.55,2606.1,2606.0,6.83727]
[1723856778341,0.55,2606.1,2606.0,10.67456]
[1723856778636,0.55,2606.1,2606.0,11.742028]
[1723856783404,3.181,2607.0,2606.4,3.83665]
[1723856783607,3.181,2607.0,2606.5,3.0]
[1723856784862,0.55,2606.9,2606.5,3.0]
[1723856785069,0.55,2606.9,2606.5,6.83652]
[1723856785235,0.06919739,2606.8,2606.5,6.83652]
[1723856785424,0.55,2606.7,2606.5,6.83652]
[1723856786021,0.55,2606.9,2606.5,6.83652]
[1723856786429,0.06919739,2606.8,2606.5,6.83652]
[1723856786658,0.55,2606.7,2606.5,6.83652]
[1723856786859,0.55,2606.7,2606.6,7.67282]
[1723856787021,0.55,2606.7,2606.6,10.67282]
[1723856787222,3.181,2607.3,2606.9,3.83588]
[1723856787661,0.06942574,2607.2,2606.9,3.83588]
[1723856787961,3.181,2607.3,2606.8,3.83599]
[1723856788264,0.06942574,2607.2,2606.8,3.83599]
[1723856788666,4.48319,2607.3,2606.9,3.0]
[1723856788667,0.55,2607.1,2606.9,3.0]
[1723856788856,0.06931173,2607.1,2606.9,3.0]
[1723856789170,0.5795619,2607.1,2606.7,3.0]
[1723856789362,0.55,2607.0,2606.7,3.0]
[1723856789567,0.06915338,2606.9,2606.7,3.0]
[1723856789729,0.55,2606.8,2606.7,3.0]
[1723856789928,0.61908096,2606.8,2606.5,6.83648]
[1723856793180,0.61908096,2606.8,2606.6,3.83636]
[1723856793383,0.61908096,2606.8,2606.7,3.0]
[1723856795738,0.74590735,2606.8,2606.5,6.83655]
[1723856796033,0.61908096,2606.8,2606.5,6.83655]
[1723856797570,0.61908096,2606.8,2606.6,3.83629]
[1723856797722,0.61908096,2606.8,2606.7,3.0]
[1723856798912,0.74590627,2606.8,2606.7,3.0]
[1723856799532,0.61908096,2606.8,2606.7,3.0]
[1723856800738,0.61908096,2606.8,2606.7,6.83626]
[1723856801657,0.61908096,2606.8,2606.7,3.0]
[1723856801941,0.74591135,2606.8,2606.7,3.0]
[1723856802239,0.74591135,2606.8,2606.0,2.98867232]
[1723856802240,3.0663,2606.7,2606.0,3.83719]
[1723856802438,3.0663,2606.7,2606.0,7.67439]
[1723856802439,3.181,2606.4,2606.0,7.67439]
[1723856802617,3.181,2606.4,2606.0,3.83719]
[1723856802798,0.06894848,2606.3,2606.0,3.83719]
[1723856803114,0.06894848,2606.3,2605.8,3.83753]
[1723856803331,0.06894848,2606.3,2605.9,3.83743]
[1723856803639,0.55,2606.2,2606.0,3.0]
[1723856803823,2.3663,2606.1,2605.9,3.0]
[1723856804009,0.55,2606.0,2605.9,3.683747]
[1723856804539,0.61871708,2606.0,2605.9,3.683747]
[1723856805050,0.61871708,2606.0,2605.9,11.358487]
[1723856805202,0.55,2606.0,2605.9,11.358487]
[1723856805407,0.55,2606.0,2605.9,12.69333411]
[1723856806003,7.46,2606.8,2606.4,3.83661]
[1723856806203,7.46,2606.8,2606.5,3.0]
[1723856806847,0.12683101,2606.7,2606.5,3.0]
[1723856807050,7.46,2606.8,2606.5,3.0]
[1723856807587,0.55,2606.7,2606.5,3.0]
[1723856808066,0.55,2606.9,2606.5,3.0]
[1723856808352,0.12682841,2606.8,2606.5,3.0]
[1723856808646,2.3802,2606.6,2606.5,3.0]
[1723856808852,3.05702841,2606.6,2606.3,6.83685]
[1723856809051,2.44952908,2606.6,2606.3,6.83685]
[1723856809223,0.55,2606.5,2606.3,6.83685]
[1723856809425,0.61924989,2606.5,2606.3,6.83685]
[1723856812584,0.61924989,2606.5,2606.4,3.8367]
[1723856812784,0.61924989,2606.5,2606.4,6.8367]
[1723856813341,0.61924989,2606.5,2606.4,3.0]
[1723856813546,0.61924989,2606.5,2606.3,6.83685]
[1723856814694,0.61924989,2606.5,2606.3,3.0]
[1723856814990,0.61924989,2606.5,2606.0,7.67439]
[1723856814991,0.42679176,2606.4,2606.1,3.0]
[1723856815189,0.42679176,2606.4,2605.8,11.15751]
[1723856815190,0.67684677,2606.3,2605.8,11.15751]
[1723856815400,0.61910237,2606.3,2605.8,11.15751]
[1723856815552,0.12685668,2606.2,2605.8,11.15751]
[1723856815752,0.61891433,2606.1,2605.8,11.15751]
[1723856816053,0.06891433,2606.1,2605.8,11.15751]
[1723856816376,0.55,2606.0,2605.9,1.33497563]
[1723856816549,0.55,2606.0,2605.9,4.33497563]
[1723856816749,0.61883511,2606.0,2605.9,3.0]
[1723856817150,0.61883511,2606.0,2605.5,2.00271402]
[1723856817151,1.23045862,2606.0,2605.5,2.00271402]
[1723856817386,1.23045862,2606.0,2605.4,3.8381]
[1723856817612,1.23045862,2606.0,2605.5,3.83792]
[1723856817979,0.12687475,2605.9,2605.5,3.83792]
[1723856818298,0.12687475,2605.9,2605.3,2.00271402]
[1723856818299,2.3154,2605.7,2605.3,2.00271402]
[1723856818447,0.55,2605.6,2605.3,3.83825]
[1723856818649,0.61595203,2605.6,2605.3,3.83825]
[1723856819554,0.61595203,2605.6,2605.4,3.0]
[1723856820049,0.61595203,2605.6,2605.3,3.0]
[1723856821865,3.182,2605.5,2605.2,3.0]
[1723856822168,3.182,2605.5,2605.1,3.0]
[1723856822169,0.55,2605.4,2605.1,3.0]
[1723856822377,0.06576568,2605.3,2605.1,3.0]
[1723856822559,0.55,2605.2,2605.1,3.0]
[1723856822977,0.61568641,2605.2,2605.1,3.0]
[1723856823196,0.55,2605.2,2605.1,3.0]
[1723856823500,0.55,2605.4,2605.1,3.0]
[1723856823707,0.06568641,2605.2,2605.1,3.0]
[1723856823914,0.55,2605.2,2605.1,6.83862]
[1723856824510,0.55,2605.4,2605.1,6.83862]
[1723856824670,0.06568641,2605.2,2605.1,6.83862]
[1723856824869,0.55,2605.2,2605.1,3.0]
[1723856825216,3.732,2605.2,2604.9,7.67773]
[1723856825394,0.55,2605.1,2604.9,3.83883]
[1723856825562,0.61558837,2605.1,2605.0,3.83877]
[1723856826370,0.61558837,2605.1,2605.0,6.83877]
[1723856827019,0.61558837,2605.1,2605.0,3.0]
[1723856827308,0.61558837,2605.1,2604.8,3.0]
[1723856827480,0.61558837,2605.1,2604.9,3.83889]
[1723856827682,0.61558837,2605.1,2605.0,3.0]
[1723856837365,0.61558837,2605.1,2605.0,6.83877]
[1723856845954,0.06558837,2605.1,2605.0,11.745298]
[1723856846131,0.00263424,2605.1,2605.0,17.957168]
[1723856846467,1.327,2605.4,2605.3,7.67664]
[1723856846622,1.327,2605.4,2605.3,10.67664]
[1723856847958,7.46,2605.7,2605.5,3.83797]
[1723856848187,7.46,2605.7,2605.5,7.67594]
[1723856848346,0.55,2605.6,2605.5,3.83797]
[1723856848854,0.55,2605.6,2605.3,6.83824]
[1723856848855,0.55,2605.6,2605.4,3.83816]
[1723856849747,0.55,2605.6,2605.5,3.83803]
[1723856850361,4.13673499,2606.4,2605.5,3.83803]
[1723856850362,2.3321,2606.5,2606.2,3.83695]
[1723856850594,1.20903966,2606.9,2605.7,3.83771]
[1723856850595,0.12685491,2606.4,2606.3,7.6736]
[1723856850890,2.3321,2606.8,2606.5,3.83652]
[1723856851204,0.12683173,2606.7,2606.5,3.83652]
[1723856851489,3.183,2606.9,2606.5,3.83652]
[1723856851698,3.183,2606.9,2606.5,3.83647]
[1723856851699,0.12683271,2606.8,2606.5,3.83647]
[1723856851914,3.183,2606.9,2606.5,3.83647]
[1723856852199,3.183,2606.9,2606.3,3.83678]
[1723856852200,0.12683195,2606.8,2606.3,3.83673]
[1723856852352,5.5151,2606.6,2606.4,3.0]
[1723856852557,3.183,2606.6,2606.3,3.83676]
[1723856852782,0.55,2606.5,2606.4,3.0]
[1723856853552,0.60673598,2606.5,2606.4,3.0]
[1723856854867,0.60673598,2606.5,2606.4,6.8367]
[1723856856497,0.60673598,2606.5,2606.4,3.0]
[1723856856660,0.60673598,2606.5,2606.4,3.8367]
[1723856856868,0.60673598,2606.5,2606.4,3.0]
[1723856858207,0.60673598,2606.5,2606.3,3.71181231]
[1723856858402,0.60673598,2606.5,2606.3,6.83683]
[1723856860267,0.60673598,2606.5,2606.3,3.0]
[1723856860470,2.3321,2606.4,2606.2,3.0]
[1723856860693,0.05657596,2606.3,2606.2,3.0]
[1723856860896,0.60657596,2606.3,2606.2,3.0]
[1723856861109,0.05657596,2606.3,2606.2,14.05582]
[1723856861316,3.183,2606.9,2606.4,3.83659]
[1723856861513,0.05700229,2606.8,2606.5,3.0]
[1723856861680,2.3321,2606.7,2606.5,3.0]
[1723856861885,0.05685012,2606.6,2606.5,3.0]
[1723856862247,2.3321,2606.7,2606.5,3.0]
[1723856862391,0.55,2606.6,2606.5,3.0]
[1723856862583,0.60685012,2606.6,2606.5,3.0]
[1723856867814,3.78985012,2606.6,2606.5,3.0]
[1723856868127,3.78985012,2606.6,2606.3,3.0]
[1723856868331,3.78985012,2606.6,2606.3,6.83685]
[1723856869683,3.733,2606.6,2606.3,6.83685]
[1723856870030,0.05680818,2606.5,2606.3,6.83685]
[1723856870334,0.55,2606.4,2606.3,3.0]
[1723856870533,0.60672896,2606.4,2606.3,3.0]
[1723856871027,0.60672896,2606.4,2606.3,11.741082]
[1723856871236,0.60672896,2606.4,2606.3,10.6737]
[1723856871467,0.05672896,2606.4,2606.3,16.96685]
[1723856871790,3.183,2607.1,2606.7,3.83622]
[1723856872289,0.05710623,2607.0,2606.7,3.83619]
[1723856872888,0.55,2606.9,2606.7,3.83619]
[1723856873199,0.60702704,2606.9,2606.7,3.83619]
[1723856874624,0.60702704,2606.9,2606.6,3.83641]
[1723856874989,5.461,2606.8,2606.5,3.83644]
[1723856875226,0.55,2606.7,2606.5,3.83644]
[1723856875431,0.60686863,2606.7,2606.3,10.67351]
[1723856875748,0.60686863,2606.7,2606.3,10.6735]
[1723856876088,0.60686863,2606.7,2606.4,3.83667]
[1723856876299,3.78986863,2606.7,2606.5,3.0]
[1723856876528,3.78986863,2606.7,2606.3,6.83673]
[1723856878120,3.183,2606.4,2606.3,3.0]
[1723856878305,2.278,2606.3,2605.9,3.83737]
[1723856878502,0.05639847,2606.2,2606.0,3.0]
[1723856878804,0.55,2606.1,2606.0,3.0]
[1723856879005,0.60631715,2606.1,2606.0,3.0]
[1723856881224,0.73317293,2606.1,2606.0,3.0]
[1723856881443,0.60631715,2606.1,2606.0,3.0]
[1723856881752,0.60631715,2606.1,2605.5,9.7763]
[1723856881753,0.73317776,2606.1,2605.6,3.83785]
[1723856882003,0.73317776,2606.1,2605.5,13.61426]